bitfinex/quotes_SOLUSD_20250101
["timestamp","ask_amount","ask_price","bid_price","bid_amount"]
[1735748369673,20.0,191.28,191.18,23.776884]
[1735748370964,73.2,191.31,191.18,23.776884]
[1735748372460,7.841,191.3,191.18,23.776884]
[1735748373669,7.841,191.3,191.18,40.24048324]
[1735748373873,7.841,191.3,191.21,20.0]
[1735748376651,7.841,191.3,191.18,0.78426297]
[1735748376981,7.841,191.3,191.15,0.78431122]
[1735748377185,7.841,191.3,191.18,23.776884]
[1735748377365,13.83008733,191.3,191.18,23.776884]
[1735748380055,27.8426,191.27,191.14,24.28909924]
[1735748380268,27.8426,191.27,191.14,7.8255]
[1735748380471,27.8426,191.27,191.15,23.776884]
[1735748384851,31.775884,191.26,191.13,8.02107357]
[1735748385081,20.0,191.23,191.13,8.02107357]
[1735748385890,20.0,191.23,191.13,20.0]
[1735748386260,7.8443,191.22,191.1,23.776884]
[1735748386674,7.8443,191.22,191.09,7.6993]
[1735748387376,7.8443,191.22,191.1,23.776884]
[1735748387561,7.8443,191.22,191.09,7.6993]
[1735748387973,7.8443,191.22,191.09,6.0757]
[1735748388356,7.8451,191.2,191.09,6.0757]
[1735748388573,7.8451,191.2,191.1,20.0]
[1735748389284,21.6504,191.15,191.06,8.02107357]
[1735748389583,4.79337092,191.14,191.05,8.02107357]
[1735748390578,7.848,191.13,191.05,8.02107357]
[1735748391075,7.848,191.13,191.01,23.776884]
[1735748391378,7.848,191.13,191.02,20.0]
[1735748394164,4.79337092,191.14,191.03,23.776884]
[1735748394387,21.6504,191.15,191.03,40.26544784]
[1735748394771,1.6504,191.15,191.05,16.48856384]
[1735748394980,1.6504,191.15,191.06,16.48856384]
[1735748396273,1.6504,191.15,191.07,23.776884]
[1735748396875,1.6504,191.15,191.07,16.48856384]
[1735748397065,20.18328733,191.19,191.07,16.48856384]
[1735748397287,20.18328733,191.19,191.08,16.48856384]
[1735748397585,20.18328733,191.19,191.09,23.776884]
[1735748397778,20.18328733,191.19,191.09,40.26544784]
[1735748398181,6.3486,191.19,191.09,40.26544784]
[1735748398757,6.3486,191.19,191.08,16.48856384]
[1735748399062,6.3486,191.19,191.09,23.776884]
[1735748400693,1.5924,191.2,191.11,23.776884]
[1735748400899,1.5924,191.2,191.11,16.48856384]
[1735748401269,1.5924,191.2,191.13,43.776884]
[1735748401790,13.65398733,191.24,191.13,60.26544784]
[1735748403073,1.5924,191.24,191.15,16.48856384]
[1735748403281,1.5924,191.24,191.17,23.776884]
[1735748403472,12.06158733,191.29,191.21,23.776884]
[1735748403473,13.65398733,191.29,191.21,23.776884]
[1735748403666,7.58148733,191.29,191.21,23.776884]
[1735748404100,1.5924,191.29,191.21,23.776884]
[1735748407196,7.8419,191.28,191.19,20.0]
[1735748407378,7.8419,191.28,191.16,1.5421]
[1735748407892,7.8419,191.28,191.19,20.0]
[1735748408080,7.8419,191.28,191.15,16.48856384]
[1735748408275,7.8419,191.28,191.17,20.0]
[1735748408468,6.0725,191.27,191.14,6.0701]
[1735748408981,6.0725,191.27,191.11,18.03066384]
[1735748409377,7.8427,191.26,191.14,20.0]
[1735748409886,7.8427,191.26,191.13,20.0]
[1735748410086,7.8427,191.26,191.14,23.776884]
[1735748410478,7.8427,191.26,191.13,23.776884]
[1735748410874,6.0725,191.27,191.16,20.0]
[1735748411075,6.0725,191.27,191.17,23.776884]
[1735748411891,6.0725,191.27,191.17,40.26544784]
[1735748412096,6.0725,191.27,191.18,23.776884]
[1735748412769,6.0725,191.27,191.17,40.26544784]
[1735748412973,6.0725,191.27,191.18,23.776884]
[1735748414797,1.5924,191.29,191.18,40.26544784]
[1735748416002,1.5924,191.29,191.22,43.776884]
[1735748416202,15.35386174,191.34,191.23,40.26544784]
[1735748417382,15.35386174,191.34,191.2,16.48856384]
[1735748417584,15.35386174,191.34,191.21,23.776884]
[1735748417975,15.35386174,191.34,191.21,16.48856384]
[1735748418788,15.35386174,191.34,191.23,20.0]
[1735748419999,15.35386174,191.34,191.2,23.776884]
[1735748420204,20.0,191.31,191.21,20.0]
[1735748420395,20.0,191.3,191.17,16.48856384]
[1735748420598,20.0,191.3,191.2,20.0]
[1735748421610,5.98956174,191.33,191.23,20.0]
[1735748421906,1.5245,191.34,191.25,23.776884]
[1735748423089,7.8398,191.33,191.24,20.0]
[1735748427289,7.8398,191.33,191.19,16.48856384]
[1735748427497,7.8398,191.33,191.17,22.27277316]
[1735748427694,7.8398,191.33,191.21,43.776884]
[1735748429614,7.8398,191.33,191.22,20.0]
[1735748429793,7.8398,191.33,191.23,20.0]
[1735748429995,1.5245,191.34,191.23,36.48856384]
[1735748430223,1.5245,191.34,191.24,16.48856384]
[1735748430719,1.5245,191.34,191.27,20.0]
[1735748430891,1.5245,191.34,191.25,17.2726099]
[1735748431688,1.5245,191.34,191.28,20.0]
[1735748432215,1.5245,191.34,191.25,17.2726099]
[1735748432586,1.5245,191.34,191.26,16.48856384]
[1735748432801,1.5245,191.34,191.28,20.0]
[1735748433218,23.776884,191.37,191.28,20.0]
[1735748433423,23.776884,191.37,191.27,20.0]
[1735748433825,23.776884,191.37,191.29,20.0]
[1735748434635,23.776884,191.37,191.27,37.27245117]
[1735748435686,23.776884,191.37,191.27,20.78388733]
[1735748436317,31.615484,191.37,191.27,20.0]
[1735748436513,31.615484,191.37,191.22,24.37966384]
[1735748436826,31.615484,191.37,191.22,6.3592]
[1735748437027,31.615484,191.37,191.25,20.0]
[1735748438215,23.776884,191.33,191.21,0.78412686]
[1735748438407,23.776884,191.31,191.18,18.05746384]
[1735748438602,23.776884,191.31,191.17,6.0122]
[1735748439492,31.617784,191.31,191.2,20.0]
[1735748440329,1.6021,191.26,191.13,16.48856384]
[1735748440611,23.776884,191.25,191.13,21.48856384]
[1735748440818,23.776884,191.25,191.16,20.0]
[1735748441213,23.776884,191.25,191.14,36.48856384]
[1735748441915,23.776884,191.25,191.18,20.0]
[1735748442123,23.776884,191.25,191.16,16.48856384]
[1735748443007,23.776884,191.25,191.17,16.48856384]
[1735748443207,23.776884,191.25,191.16,16.48856384]
[1735748443517,23.776884,191.25,191.18,20.0]
[1735748444305,23.776884,191.25,191.15,17.27301948]
[1735748445022,23.776884,191.25,191.18,20.0]
[1735748447439,23.776884,191.25,191.15,22.27301948]
[1735748447440,23.776884,191.25,191.16,36.48856384]
[1735748447939,23.776884,191.25,191.16,20.0]
[1735748450213,1.6021,191.26,191.17,0.78437608]
[1735748450417,1.6021,191.26,191.17,17.27293992]
[1735748451020,1.6021,191.31,191.19,16.48856384]
[1735748451326,1.6021,191.31,191.22,20.0]
[1735748452121,1.6021,191.31,191.2,20.78417824]
[1735748452302,1.6021,191.31,191.22,20.0]
[1735748453105,23.776884,191.3,191.22,20.0]
[1735748453510,22.85228525,191.3,191.22,20.0]
[1735748453711,20.0,191.26,191.2,0.78417824]
[1735748453914,1.6106,191.25,191.18,8.1701657]
[1735748454109,1.6106,191.25,191.15,8.1701657]
[1735748454936,1.6106,191.25,191.12,8.1701657]
[1735748455421,20.0,191.21,191.12,8.1701657]
[1735748455620,23.776884,191.2,191.12,8.1701657]
[1735748456539,23.776884,191.2,191.1,8.1701657]
[1735748457287,23.776884,191.2,191.09,8.95465963]
[1735748457538,30.009084,191.18,191.09,8.1701657]
[1735748458150,30.009084,191.18,191.07,8.1701657]
[1735748458633,20.0,191.11,191.07,8.1701657]
[1735748459012,23.776884,191.1,191.07,8.1701657]
[1735748459223,25.393584,191.1,191.06,8.1701657]
[1735748460018,23.776884,191.08,191.06,8.1701657]
[1735748460319,23.776884,191.08,190.97,8.1701657]
[1735748461222,23.776884,191.08,190.96,22.86436384]
[1735748461431,30.009084,191.08,190.94,16.48856384]
[1735748461745,23.776884,191.04,190.94,16.48856384]
[1735748462524,20.0,191.05,190.95,16.48856384]
[1735748462926,23.776884,191.04,190.95,36.48856384]
[1735748463547,23.776884,191.04,190.96,16.48856384]
[1735748463745,1.6167,191.1,190.98,16.48856384]
[1735748464055,23.776884,191.09,190.97,16.48856384]
[1735748464231,23.776884,191.05,190.96,20.0]
[1735748465538,23.776884,191.05,190.94,16.48856384]
[1735748466126,23.776884,191.05,190.95,36.48856384]
[1735748466530,23.776884,191.05,190.96,16.48856384]
[1735748467028,20.0,191.06,190.96,36.48856384]
[1735748467351,43.776884,191.09,190.97,16.48856384]
[1735748467539,23.776884,191.08,190.96,36.48856384]
[1735748468957,23.776884,191.08,190.95,20.0]
[1735748469742,23.776884,191.08,190.92,7.16097029]
[1735748469743,20.0,191.05,190.93,16.48856384]
[1735748471038,31.626984,191.08,190.95,16.48856384]
[1735748471357,20.0,191.08,190.96,36.48856384]
[1735748472359,43.776884,191.06,190.96,36.48856384]
[1735748472859,43.776884,191.06,190.95,36.48856384]
[1735748473043,43.776884,191.06,190.95,20.0]
[1735748478257,43.776884,191.06,190.94,17.27387541]
[1735748478454,43.776884,191.06,190.92,6.3758]
[1735748478455,51.628184,191.06,190.93,16.48856384]
[1735748478663,20.0,191.02,190.93,16.48856384]
[1735748478839,23.776884,191.04,190.93,16.48856384]
[1735748480351,23.776884,191.04,190.94,16.48856384]
[1735748480665,20.0,191.03,190.94,16.48856384]
[1735748480862,14.3343,191.09,190.96,16.48856384]
[1735748481172,14.3343,191.09,190.97,16.48856384]
[1735748481544,20.0,191.05,190.96,16.48856384]
[1735748482249,23.776884,191.08,190.97,16.48856384]
[1735748482668,23.776884,191.08,190.98,16.48856384]
[1735748482977,1.6167,191.1,191.01,16.48856384]
[1735748483137,1.1958113,191.12,191.03,16.48856384]
[1735748483336,20.0,191.12,191.03,16.48856384]
[1735748484363,1.5085,191.14,191.03,16.48856384]
[1735748484554,23.776884,191.13,191.02,36.48856384]
[1735748484937,23.776884,191.13,191.02,20.0]
[1735748485367,23.776884,191.13,191.02,36.48856384]
[1735748485545,23.776884,191.13,191.03,16.48856384]
[1735748486262,20.0,191.12,191.03,16.48856384]
[1735748486447,20.0,191.12,191.02,20.7849235]
[1735748486448,1.5085,191.14,191.04,16.48856384]
[1735748486864,23.776884,191.13,191.02,37.27348734]
[1735748487047,23.776884,191.13,191.02,20.7849235]
[1735748487774,23.776884,191.13,191.02,20.0]
[1735748493768,23.776884,191.11,191.0,17.27362033]
[1735748494151,23.776884,191.11,190.99,6.1022]
[1735748495271,23.776884,191.07,190.99,6.1022]
[1735748495574,23.776884,191.09,190.98,16.48856384]
[1735748497290,13.83756174,191.13,191.01,16.48856384]
[1735748497457,13.83756174,191.13,191.02,16.48856384]
[1735748497965,23.776884,191.12,191.01,16.48856384]
[1735748498880,23.776884,191.12,191.02,16.48856384]
[1735748499684,1.5085,191.14,191.0,0.78501663]
[1735748499685,1.5085,191.14,191.03,16.48856384]
[1735748499867,1.5085,191.14,191.04,16.48856384]
[1735748500065,1.5085,191.14,191.05,17.27338915]
[1735748501064,1.5085,191.14,191.06,16.48856384]
[1735748501269,5.98956174,191.18,191.07,17.27330247]
[1735748502302,23.776884,191.17,191.07,0.78473863]
[1735748504568,23.776884,191.15,191.04,36.48856384]
[1735748504762,7.8468,191.16,191.05,0.78487832]
[1735748504968,7.8468,191.16,191.05,37.27344216]
[1735748505585,7.8468,191.16,191.06,36.48856384]
[1735748505783,5.98956174,191.18,191.07,17.27329688]
[1735748505989,23.776884,191.17,191.07,17.27329688]
[1735748508288,9.4187,191.19,191.08,16.48856384]
[1735748508594,23.776884,191.18,191.09,17.2732337]
[1735748508778,1.5731,191.19,191.1,16.48856384]
[1735748509087,1.5731,191.19,191.11,17.27314832]
[1735748509669,1.5731,191.19,191.11,0.78458448]
[1735748510468,15.40666174,191.23,191.11,0.78458448]
[1735748511400,23.776884,191.21,191.11,0.78458448]
[1735748513185,23.776884,191.21,191.1,16.48856384]
[1735748514106,31.621984,191.21,191.12,20.0]
[1735748516774,31.621984,191.21,191.09,22.61806384]
[1735748517101,31.621984,191.21,191.09,6.1295]
[1735748517318,31.621984,191.21,191.12,20.0]
[1735748520396,31.621984,191.21,191.09,6.1295]
[1735748520600,36.41573444,191.21,191.09,6.1295]
[1735748521184,36.41573444,191.21,191.09,16.68043488]
[1735748524409,36.41573444,191.21,191.09,6.1295]
[1735748525514,36.41573444,191.21,191.09,16.68043488]
[1735748526005,36.41573444,191.21,191.09,6.1295]
[1735748528905,52.10523444,191.21,191.08,0.78467277]
[1735748529107,23.776884,191.19,191.09,20.0]
[1735748529604,23.776884,191.19,191.05,17.46151992]
[1735748529810,4.79375044,191.19,191.05,6.91058504]
[1735748530106,23.776884,191.17,191.05,6.91058504]
[1735748530418,1.5294,191.16,191.05,6.91058504]
[1735748530783,7.8472,191.15,191.05,6.91058504]
[1735748530984,7.8472,191.15,191.05,17.46151992]
[1735748531710,7.8472,191.15,191.06,10.55093488]
[1735748531904,7.8472,191.15,191.07,11.33570328]
[1735748532591,7.8461,191.18,191.1,10.55093488]
[1735748532796,1.5294,191.21,191.11,11.33558287]
[1735748534110,7.8455,191.19,191.09,1.6279]
[1735748534616,7.8455,191.19,191.06,0.78457166]
[1735748534793,7.8455,191.19,191.06,11.33550654]
[1735748535110,7.8455,191.19,191.07,10.55093488]
[1735748535915,7.8455,191.19,191.06,0.78457166]
[1735748536288,7.8455,191.19,191.06,11.33550654]
[1735748537509,7.8455,191.19,191.06,0.78457166]
[1735748537712,31.623284,191.17,191.05,6.1259]
[1735748538087,31.623284,191.17,191.04,1.6279]
[1735748538612,20.0,191.14,191.03,10.55093488]
[1735748538906,23.776884,191.11,191.02,8.1701657]
[1735748539110,23.776884,191.09,191.02,8.1701657]
[1735748539293,23.776884,191.09,191.0,8.1701657]
[1735748539698,23.776884,191.07,191.0,8.1701657]
[1735748540387,23.776884,191.07,190.97,10.55093488]
[1735748541291,23.776884,191.07,190.96,10.55093488]
[1735748542348,23.776884,191.07,190.96,16.50690104]
[1735748542688,31.626584,191.09,190.95,22.80650104]
[1735748544211,31.626584,191.09,190.97,16.50690104]
[1735748544709,31.626584,191.09,190.96,16.50690104]
[1735748544910,31.626584,191.09,190.95,22.80650104]
[1735748545126,37.40093125,191.09,190.95,22.80650104]
[1735748545648,23.776884,191.05,190.95,6.2996]
[1735748545809,23.776884,191.05,190.93,24.67706674]
[1735748546009,23.776884,191.03,190.93,8.1701657]
[1735748547017,23.776884,191.03,190.94,16.50690104]
[1735748547421,1.6323,191.04,190.95,16.50690104]
[1735748547615,1.6323,191.04,190.96,16.50690104]
[1735748548033,1.6323,191.04,190.97,16.50690104]
[1735748549930,1.6323,191.04,190.95,16.50690104]
[1735748550141,1.6323,191.04,190.95,36.50690104]
[1735748550947,1.6323,191.04,190.96,16.50690104]
[1735748553819,1.6323,191.04,190.95,36.50690104]
[1735748554435,1.6323,191.04,190.94,16.50690104]
[1735748554631,1.6323,191.04,190.93,36.50690104]
[1735748554827,7.8521,191.03,190.93,16.50690104]
[1735748555143,7.8521,191.03,190.93,36.50690104]
[1735748558545,23.776884,191.02,190.9,8.44438764]
[1735748558849,23.776884,191.0,190.9,7.6591]
[1735748559031,23.776884,191.0,190.89,16.50690104]
[1735748559439,23.776884,191.0,190.88,16.50690104]
[1735748560334,23.776884,191.0,190.89,16.50690104]
[1735748562541,7.8529,191.01,190.87,0.78536836]
[1735748562542,27.8538,190.99,190.88,16.50690104]
[1735748562737,27.8538,190.99,190.89,16.50690104]
[1735748563348,1.6546,191.01,190.91,16.50690104]
[1735748564346,1.6546,191.01,190.91,10.57023473]
[1735748564927,1.6546,191.01,190.92,10.57023473]
[1735748565141,1.6546,191.01,190.9,0.78539565]
[1735748565142,1.6546,191.01,190.91,10.57023473]
[1735748565830,1.6546,191.01,190.9,11.35563038]
[1735748566026,20.0,190.99,190.9,0.78539565]
[1735748566349,27.8538,190.99,190.89,10.57023473]
[1735748567031,7.8538,190.99,190.9,10.57023473]
[1735748567233,7.8538,190.99,190.89,30.57023473]
[1735748568539,7.8538,190.99,190.9,10.57023473]
[1735748569255,7.8538,190.99,190.89,20.78546815]
[1735748570754,7.8538,190.99,190.89,31.35570288]
[1735748572456,7.8538,190.99,190.89,20.78546815]
[1735748572761,7.8538,190.99,190.89,20.0]
[1735748572951,7.8538,190.99,190.86,6.0281]
[1735748572952,27.8538,190.99,190.86,6.0281]
[1735748573147,27.8538,190.99,190.87,10.57023473]
[1735748574050,23.776884,190.98,190.86,10.57023473]
[1735748574257,23.776884,190.96,190.85,10.57023473]
[1735748575262,31.631084,190.98,190.86,10.57023473]
[1735748575447,31.631084,190.98,190.87,10.57023473]
[1735748575841,31.631084,190.98,190.86,10.57023473]
[1735748576954,31.631084,190.98,190.85,10.57023473]
[1735748577143,23.776884,190.96,190.84,10.57023473]
[1735748578040,23.776884,190.96,190.86,10.57023473]
[1735748578455,23.776884,190.96,190.85,0.7857175]
[1735748578657,23.776884,190.96,190.85,10.57023473]
[1735748578962,1.5306,190.97,190.88,10.57023473]
[1735748579167,1.5306,190.97,190.89,10.57023473]
[1735748581867,1.5306,190.97,190.9,10.57023473]
[1735748582039,1.5306,190.97,190.91,10.57023473]
[1735748582564,1.5306,191.01,190.9,0.78542563]
[1735748582769,1.5306,191.01,190.92,10.57023473]
[1735748582957,1.5306,191.01,190.92,11.35556598]
[1735748583161,1.5306,191.01,190.93,10.57023473]
[1735748583487,1.5306,191.01,190.95,10.57023473]
[1735748584347,1.5306,191.01,190.94,11.35544974]
[1735748584664,1.5306,191.01,190.93,10.57023473]
[1735748584877,23.776884,191.05,190.93,10.57023473]
[1735748585450,7.8517,191.04,190.92,30.57023473]
[1735748585670,23.776884,191.03,190.92,20.0]
[1735748586062,23.776884,191.03,190.89,0.78527667]
[1735748586254,23.776884,191.03,190.89,11.3555114]
[1735748587069,43.776884,191.03,190.89,11.3555114]
[1735748587754,1.5306,191.04,190.93,20.0]
[1735748588061,23.776884,191.03,190.93,20.0]
[1735748588244,31.628984,191.03,190.93,20.0]
[1735748588448,7.8521,191.03,190.97,20.0]
[1735748589652,7.8521,191.03,190.96,20.0]
[1735748589859,31.628984,191.03,190.96,20.0]
[1735748590867,31.628984,191.03,190.94,20.0]
[1735748592056,31.628984,191.03,190.91,20.0]
[1735748592264,13.9181,191.01,190.86,0.78545458]
[1735748592448,13.9181,191.01,190.93,20.0]
[1735748592774,1.562,190.99,190.93,20.0]
[1735748593267,1.562,190.99,190.91,20.0]
[1735748593775,7.8542,190.98,190.91,20.0]
[1735748595354,7.8542,190.98,190.88,10.57023473]
[1735748596278,7.8542,190.98,190.89,10.57023473]
[1735748597260,7.8542,190.98,190.9,10.57023473]
[1735748597481,7.8542,190.98,190.91,10.57023473]
[1735748597976,7.8542,190.98,190.9,10.57023473]
[1735748598380,7.8542,190.98,190.92,10.57023473]
[1735748598680,1.562,190.99,190.93,10.57023473]
[1735748598871,1.562,190.99,190.92,10.57023473]
[1735748600772,1.562,190.99,190.86,24.56252756]
[1735748600977,1.562,190.99,190.93,10.57023473]
[1735748601177,15.7018,191.06,190.96,10.57023473]
[1735748601178,1.562,191.04,190.96,10.57023473]
[1735748601462,9.4137,191.04,190.96,10.57023473]
[1735748601858,9.4137,191.04,190.95,10.57023473]
[1735748602973,9.4137,191.04,190.96,10.57023473]
[1735748603782,9.4137,191.04,190.95,10.57023473]
[1735748604483,23.776884,191.01,190.92,10.57023473]
[1735748604691,23.776884,191.01,190.9,18.74040043]
[1735748605569,7.8534,191.0,190.9,10.57023473]
[1735748606888,7.8542,190.98,190.89,10.57023473]
[1735748607190,1.5823,190.97,190.89,10.57023473]
[1735748607685,1.5823,190.97,190.9,10.57023473]
[1735748607868,1.5823,190.97,190.91,10.57023473]
[1735748614190,7.8542,190.98,190.93,10.57023473]
[1735748615100,7.8529,191.01,190.94,10.57023473]
[1735748617194,7.8529,191.01,190.95,10.57023473]
[1735748618083,7.8529,191.01,190.94,10.57023473]
[1735748618902,7.8529,191.01,190.88,8.1701657]
[1735748619123,7.8529,191.01,190.91,10.57023473]
[1735748620400,7.8529,191.01,190.92,10.57023473]
[1735748620695,7.8529,191.01,190.93,10.57023473]
[1735748623184,1.5823,191.02,190.97,10.57023473]
[1735748623382,7.8518,191.04,190.98,10.57023473]
[1735748623898,7.8518,191.04,190.97,10.57023473]
[1735748624603,7.8518,191.04,190.96,10.57023473]
[1735748625399,7.8518,191.04,190.95,10.57023473]
[1735748626200,7.8518,191.04,190.96,10.57023473]
[1735748626605,7.8518,191.04,190.97,10.57023473]
[1735748626910,1.5879,191.06,190.92,16.97330502]
[1735748626911,1.5879,191.06,191.0,10.57023473]
[1735748627502,1.5879,191.06,190.94,0.78526236]
[1735748627503,9.4371,191.11,191.01,10.57023473]
[1735748628188,9.4371,191.11,191.02,10.57023473]
[1735748628911,9.4371,191.11,191.03,10.57023473]
[1735748629290,9.4371,191.11,191.04,10.57023473]
[1735748630592,9.4371,191.11,191.06,10.57023473]
[1735748630794,1.5879,191.11,191.06,10.57023473]
[1735748631104,7.8476,191.15,191.09,10.57023473]
[1735748631808,7.8476,191.15,191.1,10.57023473]
[1735748632405,1.5879,191.16,191.11,10.57023473]
[1735748632705,1.5879,191.16,191.1,10.57023473]
[1735748633710,9.4348,191.16,191.08,10.57023473]
[1735748634211,9.4348,191.16,191.08,16.49149917]
[1735748634909,9.4348,191.16,191.06,16.49149917]
[1735748635708,9.4348,191.16,191.07,16.49149917]
[1735748645111,9.4348,191.16,191.08,16.49149917]
[1735748645321,9.4348,191.16,191.1,16.49149917]
[1735748645503,1.5879,191.16,191.1,16.49149917]
[1735748646019,1.5879,191.16,191.11,16.49149917]
[1735748646523,1.6143,191.2,191.13,16.49149917]
[1735748648234,1.6143,191.2,191.14,16.49149917]
[1735748648907,19.23925044,191.22,191.14,16.49149917]
[1735748649511,7.8443,191.22,191.15,16.49149917]
[1735748651598,7.8443,191.22,191.13,16.49149917]
[1735748651803,7.8443,191.22,191.12,16.49149917]
[1735748652029,20.0,191.19,191.11,16.49149917]
[1735748652324,7.8443,191.22,191.11,16.49149917]
[1735748653024,7.8443,191.22,191.12,16.49149917]
[1735748653225,15.6879,191.23,191.1,16.49149917]
[1735748653226,7.8451,191.2,191.1,16.49149917]
[1735748653423,7.8451,191.2,191.09,16.49149917]
[1735748653629,20.0,191.17,191.08,16.49149917]
[1735748654216,20.0,191.17,191.08,10.55454126]
[1735748654723,7.8468,191.16,191.08,10.55454126]
[1735748654923,7.8468,191.16,191.06,10.55454126]
[1735748655728,7.8468,191.16,191.08,10.55454126]
[1735748657840,7.8468,191.16,191.04,24.56177865]
[1735748657841,7.8468,191.16,191.07,10.55454126]
[1735748658630,7.8468,191.16,191.04,24.56177865]
[1735748658834,7.8468,191.16,191.07,10.55454126]
[1735748659725,7.8468,191.16,191.08,10.55454126]
[1735748660416,1.5429,191.17,191.09,10.55454126]
[1735748660617,6.4972,191.19,191.12,10.55454126]
[1735748660938,7.8454,191.2,191.12,10.55454126]
[1735748662117,1.6501,191.22,191.15,10.55454126]
[1735748663018,1.6501,191.22,191.14,10.55454126]
[1735748664912,7.8447,191.21,191.07,20.0]
[1735748665114,7.8447,191.21,191.12,10.55454126]
[1735748668010,7.8447,191.21,191.13,10.55454126]
[1735748669941,7.8447,191.21,191.14,10.55454126]
[1735748671120,1.6501,191.22,191.15,10.55454126]
[1735748671335,1.6501,191.22,191.16,10.55454126]
[1735748673516,7.8436,191.24,191.18,10.55454126]
[1735748673815,7.8436,191.24,191.16,10.55454126]
[1735748674337,7.8436,191.24,191.17,10.55454126]
[1735748675843,7.8436,191.24,191.18,10.55454126]
[1735748676150,7.8436,191.24,191.11,32.20951711]
[1735748676151,9.3468,191.27,191.21,10.55454126]
[1735748676437,9.3468,191.27,191.22,10.55454126]
[1735748678849,7.8424,191.27,191.22,10.55454126]
[1735748679148,7.841,191.3,191.22,10.55454126]
[1735748680131,7.841,191.3,191.2,10.55454126]
[1735748680654,7.841,191.3,191.2,10.05454126]
[1735748688940,7.841,191.3,191.23,10.55454126]
[1735748691760,7.841,191.3,191.25,10.55454126]
[1735748691953,1.5044,191.32,191.26,10.55454126]
[1735748692456,1.5044,191.32,191.25,10.55454126]
[1735748694076,1.5044,191.32,191.26,10.55454126]
[1735748696055,7.8398,191.33,191.28,10.55454126]
[1735748696251,1.5735,191.37,191.3,10.55454126]
[1735748696468,1.5735,191.37,191.31,10.55454126]
[1735748697062,1.5735,191.37,191.3,10.55454126]
[1735748698051,7.8386,191.36,191.26,1.6338]
[1735748698256,7.8386,191.36,191.29,10.55454126]
[1735748698961,7.8386,191.36,191.3,10.55454126]
[1735748700368,7.8386,191.36,191.29,10.55454126]
[1735748700680,7.8386,191.36,191.3,10.55454126]
[1735748701288,7.8386,191.36,191.26,1.6338]
[1735748701497,7.8386,191.36,191.28,10.55454126]
[1735748701962,7.8386,191.36,191.29,10.55454126]
[1735748702570,7.8386,191.36,191.3,10.55454126]
[1735748702896,7.8386,191.36,191.31,10.55454126]
[1735748703181,15.6724,191.42,191.34,10.55454126]
[1735748703182,7.8374,191.39,191.34,10.55454126]
[1735748703665,9.4097,191.42,191.28,0.7837988]
[1735748703986,9.4097,191.42,191.34,10.55454126]
[1735748704795,9.4097,191.42,191.35,10.55454126]
[1735748707314,9.4097,191.42,191.34,10.55454126]
[1735748708007,9.4097,191.42,191.29,1.6338]
[1735748708008,9.4097,191.42,191.33,10.55454126]
[1735748708371,9.4097,191.42,191.32,10.55454126]
[1735748708674,25.082,191.42,191.31,10.55454126]
[1735748709198,20.0,191.39,191.3,10.55454126]
[1735748710276,7.8378,191.38,191.3,10.55454126]
[1735748710474,7.8378,191.38,191.31,10.55454126]
[1735748712100,7.8378,191.38,191.3,10.55454126]
[1735748714300,7.8378,191.38,191.33,10.55454126]
[1735748715709,7.8378,191.38,191.32,10.55454126]
[1735748718123,7.8378,191.38,191.33,10.55454126]
[1735748719577,7.8365,191.41,191.34,10.55454126]
[1735748719777,7.8365,191.41,191.36,10.55454126]
[1735748726338,7.8365,191.41,191.34,10.55454126]
[1735748728629,7.8365,191.41,191.33,10.55454126]
[1735748729013,7.8365,191.41,191.34,10.55454126]
[1735748729431,7.8365,191.41,191.35,10.55454126]
[1735748730707,7.8365,191.41,191.36,10.55454126]
[1735748733623,5.65583167,191.47,191.37,10.55454126]
[1735748733834,7.8345,191.46,191.38,10.55454126]
[1735748734012,7.8345,191.46,191.39,10.55454126]
[1735748734911,7.8345,191.46,191.4,10.55454126]
[1735748736703,7.8345,191.46,191.41,10.55454126]
[1735748737543,7.8332,191.5,191.44,10.55454126]
[1735748737827,1.6132,191.52,191.45,10.55454126]